bitfinex/quotes_BTCUSD_20250324
["timestamp","ask_amount","ask_price","bid_price","bid_amount"]
[1742805103748,0.25399942,87523.0,87522.0,0.13318384]
[1742805109169,0.25399942,87523.0,87522.0,0.13266384]
[1742805109374,0.25399942,87523.0,87522.0,0.00114384]
[1742805109375,0.55399942,87523.0,87522.0,0.00114384]
[1742805109621,0.7669153,87523.0,87522.0,0.00114384]
[1742805109796,0.79599128,87523.0,87522.0,0.00114384]
[1742805110709,0.79599128,87523.0,87522.0,0.00014384]
[1742805110854,0.79699128,87523.0,87522.0,0.00014384]
[1742805111060,0.79799128,87523.0,87522.0,0.00014384]
[1742805111307,0.79699128,87523.0,87522.0,0.00014384]
[1742805112841,0.8168874,87523.0,87522.0,0.00014384]
[1742805119707,0.55447885,87522.0,87521.0,8.4e-07]
[1742805119910,0.75155388,87522.0,87521.0,8.4e-07]
[1742805120825,0.75455388,87522.0,87521.0,8.4e-07]
[1742805121378,0.75655388,87522.0,87521.0,8.4e-07]
[1742805122331,0.75355388,87522.0,87521.0,8.4e-07]
[1742805122813,0.75755388,87522.0,87521.0,8.4e-07]
[1742805125991,0.75755388,87522.0,87513.0,8.4e-07]
[1742805125992,0.55450085,87514.0,87513.0,8.4e-07]
[1742805126201,0.75387588,87514.0,87513.0,8.4e-07]
[1742805127361,0.76187588,87514.0,87513.0,8.4e-07]
[1742805128145,0.539994,87502.0,87501.0,0.00180586]
[1742805129129,0.55789451,87502.0,87501.0,0.00180586]
[1742805129323,0.55789451,87502.0,87501.0,0.13248586]
[1742805129533,0.55889451,87502.0,87501.0,0.13248586]
[1742805130298,0.65603536,87502.0,87501.0,8.6e-07]
[1742805131125,0.70583536,87502.0,87501.0,8.6e-07]
[1742805132411,0.55453685,87501.0,87500.0,6.6e-07]
[1742805132624,0.67411188,87501.0,87500.0,6.6e-07]
[1742805133695,0.68211188,87501.0,87500.0,6.6e-07]
[1742805134508,0.55453985,87500.0,87499.0,6.6e-07]
[1742805134713,0.74921488,87500.0,87499.0,6.6e-07]
[1742805135315,0.540018,87493.0,87492.0,6.6e-07]
[1742805135500,0.75203388,87493.0,87492.0,6.6e-07]
[1742805136017,0.76333877,87493.0,87492.0,6.6e-07]
[1742805137649,0.76533877,87493.0,87492.0,6.6e-07]
[1742805137791,0.78324117,87493.0,87492.0,6.6e-07]
[1742805137991,0.78424117,87493.0,87492.0,6.6e-07]
[1742805148616,0.5609204,87493.0,87492.0,6.6e-07]
[1742805148854,0.543018,87493.0,87492.0,6.6e-07]
[1742805151575,0.56091909,87493.0,87492.0,6.6e-07]
[1742805156526,0.56091909,87493.0,87492.0,0.13008066]
[1742805157900,0.57545994,87493.0,87492.0,6.6e-07]
[1742805158113,0.65575994,87493.0,87492.0,6.6e-07]
[1742805158342,0.70095994,87493.0,87492.0,6.6e-07]
[1742805158775,0.82053497,87493.0,87492.0,6.6e-07]
[1742805159353,0.80263388,87493.0,87492.0,6.6e-07]
[1742805160410,0.75743388,87493.0,87492.0,6.6e-07]
[1742805162486,0.77533594,87493.0,87492.0,6.6e-07]
[1742805163479,0.76079509,87493.0,87492.0,6.6e-07]
[1742805176891,0.77533594,87493.0,87492.0,6.6e-07]
[1742805181681,0.75743388,87493.0,87492.0,6.6e-07]
[1742805186349,0.7753355,87493.0,87492.0,6.6e-07]
[1742805189823,0.7743355,87493.0,87492.0,6.6e-07]
[1742805190586,0.7723355,87493.0,87492.0,6.6e-07]
[1742805190983,0.7753355,87493.0,87492.0,6.6e-07]
[1742805191250,0.7773355,87493.0,87492.0,6.6e-07]
[1742805191451,0.7743355,87493.0,87492.0,6.6e-07]
[1742805191839,0.7773355,87493.0,87492.0,6.6e-07]
[1742805193463,0.54003,87489.0,87488.0,6.6e-07]
[1742805193818,0.82654588,87489.0,87488.0,6.6e-07]
[1742805194775,0.83554588,87489.0,87488.0,6.6e-07]
[1742805195200,0.83054588,87489.0,87488.0,6.6e-07]
[1742805195643,0.83554588,87489.0,87488.0,6.6e-07]
[1742805196075,0.79004588,87489.0,87488.0,6.6e-07]
[1742805196605,0.81273791,87489.0,87488.0,6.6e-07]
[1742805196983,0.83064107,87489.0,87488.0,6.6e-07]
[1742805197191,0.540048,87482.0,87481.0,0.00224196]
[1742805197383,0.67416388,87482.0,87481.0,0.00224196]
[1742805198544,0.67616388,87482.0,87481.0,0.00224196]
[1742805199301,0.67616388,87482.0,87481.0,0.0021445]
[1742805199883,0.55658885,87482.0,87481.0,0.0021445]
[1742805200410,0.56058885,87482.0,87481.0,0.0021445]
[1742805200978,0.546048,87482.0,87481.0,0.0021445]
[1742805207348,0.246048,87482.0,87481.0,0.0021445]
[1742805208280,0.244048,87482.0,87481.0,0.0021445]
[1742805208435,0.004,87482.0,87481.0,0.2307655]
[1742805208638,0.005,87482.0,87481.0,0.2910965]
[1742805208982,0.004,87482.0,87481.0,0.2796655]
[1742805209363,0.232618,87482.0,87481.0,0.0510445]
[1742805209579,0.228613,87484.0,87481.0,0.2796655]
[1742805209776,0.230618,87482.0,87481.0,0.0510445]
[1742805210130,0.002,87482.0,87481.0,0.0510445]
[1742805210339,0.242048,87482.0,87481.0,0.0510445]
[1742805210658,0.242048,87482.0,87481.0,0.07414794]
[1742805210860,0.240048,87482.0,87481.0,0.07414794]
[1742805211251,0.228618,87482.0,87481.0,0.07414794]
[1742805211424,0.228617,87483.0,87481.0,0.07414794]
[1742805211598,0.228617,87483.0,87481.0,0.07614794]
[1742805211803,0.228618,87482.0,87481.0,0.07614794]
[1742805212207,0.228614,87484.0,87481.0,0.07614794]
[1742805212411,0.228618,87482.0,87481.0,0.07414794]
[1742805212615,0.240037,87487.0,87481.0,0.07614794]
[1742805212828,0.240037,87487.0,87484.0,0.228612]
[1742805213030,0.228612,87485.0,87481.0,0.30476594]
[1742805213189,0.01143,87485.0,87481.0,0.07614794]
[1742805213391,0.01143,87484.0,87481.0,0.07614794]
[1742805213637,0.240047,87484.0,87481.0,0.07614794]
[1742805214047,0.240048,87482.0,87481.0,0.07614794]
[1742805214267,0.240048,87482.0,87481.0,0.07414794]
[1742805214511,0.240048,87482.0,87481.0,0.07614794]
[1742805214910,0.240048,87482.0,87481.0,0.07414794]
[1742805215125,0.240048,87482.0,87481.0,0.0041445]
[1742805215563,0.240048,87482.0,87481.0,0.1314245]
[1742805215810,0.240048,87482.0,87481.0,0.1334245]
[1742805217285,0.240048,87482.0,87481.0,0.1314245]
[1742805217484,0.240048,87482.0,87481.0,0.1324245]
[1742805217882,0.240048,87482.0,87481.0,0.1324645]
[1742805218478,0.240048,87482.0,87481.0,0.1324245]
[1742805219866,0.2402177,87482.0,87481.0,0.1324245]
[1742805221107,0.2402177,87482.0,87481.0,0.1324245]
[1742805225107,0.2402177,87482.0,87481.0,0.0031445]
[1742805225316,0.6167177,87482.0,87481.0,0.0031445]
[1742805226573,0.6207177,87482.0,87481.0,0.0031445]
[1742805226877,0.228628,87478.0,87476.0,7e-07]
[1742805227102,0.540062,87477.0,87476.0,7e-07]
[1742805228479,0.55796663,87477.0,87476.0,7e-07]
[1742805229018,0.55896663,87477.0,87476.0,7e-07]
[1742805230024,0.56096663,87477.0,87476.0,7e-07]
[1742805232701,0.56096663,87477.0,87461.0,0.002]
[1742805232702,0.441032,87468.0,87461.0,0.002]
[1742805232910,0.441032,87468.0,87421.0,0.006582]
[1742805232911,0.40607385,87461.0,87460.0,2e-07]
[1742805233111,0.391533,87461.0,87460.0,2e-07]
[1742805234936,0.311433,87461.0,87460.0,2e-07]
[1742805235916,0.33034321,87461.0,87460.0,2e-07]
[1742805236295,0.33234321,87461.0,87460.0,2e-07]
[1742805237751,0.41374321,87461.0,87460.0,2e-07]
[1742805238806,0.41274321,87461.0,87460.0,2e-07]
[1742805239010,0.41074321,87461.0,87460.0,2e-07]
[1742805239222,0.41274321,87461.0,87460.0,2e-07]
[1742805239440,0.41574321,87461.0,87460.0,2e-07]
[1742805244529,0.43711657,87461.0,87460.0,2e-07]
[1742805244894,0.43728627,87461.0,87460.0,2e-07]
[1742805245019,0.5568613,87461.0,87460.0,2e-07]
[1742805245766,0.4754613,87461.0,87460.0,2e-07]
[1742805247382,0.7041343,87461.0,87460.0,2e-07]
[1742805247734,0.71867515,87461.0,87460.0,2e-07]
[1742805247961,0.79517515,87461.0,87460.0,2e-07]
[1742805248369,0.79517515,87461.0,87451.0,0.0003392]
[1742805248370,0.54013,87452.0,87451.0,4e-07]
[1742805248537,0.75644588,87452.0,87451.0,4e-07]
[1742805249146,0.77781924,87452.0,87451.0,4e-07]
[1742805249365,0.240166,87439.0,87438.0,4e-07]
[1742805249567,0.617866,87439.0,87438.0,4e-07]
[1742805249971,0.77335524,87439.0,87438.0,4e-07]
[1742805251895,0.79126988,87439.0,87438.0,4e-07]
[1742805252323,0.540178,87435.0,87434.0,6e-07]
[1742805253143,0.56155136,87435.0,87434.0,6e-07]
[1742805253889,0.54018,87434.0,87433.0,0.00024232]
[1742805254129,0.54018,87434.0,87433.0,3.2e-07]
[1742805254316,0.67429588,87434.0,87433.0,3.2e-07]
[1742805254534,0.77576924,87434.0,87433.0,3.2e-07]
[1742805254856,0.7874587,87434.0,87433.0,3.2e-07]
[1742805255281,0.7874587,87434.0,87421.0,0.002]
[1742805255282,0.540213,87422.0,87421.0,3.2e-07]
[1742805256890,0.623413,87422.0,87421.0,3.2e-07]
[1742805257110,0.627413,87422.0,87421.0,3.2e-07]
[1742805257864,0.64532995,87422.0,87421.0,3.2e-07]
[1742805259323,0.75056818,87422.0,87421.0,3.2e-07]
[1742805259545,0.82874583,87422.0,87421.0,3.2e-07]
[1742805260700,0.82674583,87422.0,87421.0,3.2e-07]
[1742805260907,0.82974583,87422.0,87421.0,3.2e-07]
[1742805261126,0.617135,87414.0,87413.0,5.2e-07]
[1742805261372,0.73671003,87414.0,87413.0,5.2e-07]
[1742805261717,0.75125088,87414.0,87413.0,5.2e-07]
[1742805262739,0.75425088,87414.0,87413.0,5.2e-07]
[1742805264563,0.75625088,87414.0,87413.0,5.2e-07]
[1742805271649,0.545235,87414.0,87413.0,5.2e-07]
[1742805275354,0.66481003,87414.0,87413.0,5.2e-07]
[1742805280927,0.66514923,87414.0,87413.0,5.2e-07]
[1742805282209,0.5455742,87414.0,87413.0,5.2e-07]
[1742805288008,0.66514923,87414.0,87413.0,5.2e-07]
[1742805288423,0.80439008,87414.0,87413.0,5.2e-07]
[1742805294700,0.82230947,87414.0,87413.0,5.2e-07]
[1742805298760,0.56349359,87414.0,87413.0,5.2e-07]
[1742805300582,0.26349359,87414.0,87413.0,5.2e-07]
[1742805300988,0.0053392,87414.0,87413.0,0.41669648]
[1742805301335,0.001,87422.0,87421.0,0.240215]
[1742805301489,0.001,87422.0,87421.0,0.40649003]
[1742805302053,0.001,87422.0,87421.0,0.41498306]
[1742805302296,0.001,87422.0,87421.0,0.41398306]
[1742805302876,0.001,87422.0,87421.0,0.43675722]
[1742805303946,0.001,87422.0,87421.0,0.43875722]
[1742805304128,0.001,87422.0,87421.0,0.43675722]
[1742805304488,0.001,87422.0,87421.0,0.44175722]
[1742805305611,0.001,87422.0,87421.0,0.19404919]
[1742805305832,0.241213,87422.0,87421.0,0.0517]
[1742805306032,0.241213,87422.0,87421.0,0.18166]
[1742805306234,0.001,87422.0,87421.0,0.18166]
[1742805306694,0.229775,87422.0,87421.0,0.18166]
[1742805307318,0.229775,87422.0,87421.0,0.17666]
[1742805307521,0.229775,87422.0,87421.0,0.17662]
[1742805307738,0.229775,87422.0,87421.0,0.17962]
[1742805308133,0.229775,87422.0,87421.0,0.18162]
[1742805309577,0.241213,87422.0,87421.0,0.18162]
[1742805312444,0.241213,87422.0,87421.0,0.13492]
[1742805312799,0.241213,87422.0,87421.0,0.13476]
[1742805316064,0.0011696,87422.0,87421.0,0.62075003]
[1742805316882,0.0011696,87422.0,87421.0,0.61775003]
[1742805317095,0.0021696,87422.0,87421.0,0.62075003]
[1742805317652,0.0021696,87422.0,87421.0,0.61875003]
[1742805317856,0.0031696,87422.0,87421.0,0.62075003]
[1742805323482,0.0031696,87422.0,87421.0,0.49099003]
[1742805323681,0.0031696,87422.0,87421.0,0.62099003]
[1742805325843,0.0031696,87422.0,87421.0,0.54439003]
[1742805326092,0.0031696,87422.0,87421.0,1.11335003]
[1742805327468,0.0031696,87422.0,87421.0,1.11368923]
[1742805328999,0.21464672,87430.0,87427.0,0.228761]
[1742805329218,0.21464672,87430.0,87428.0,0.11957503]
[1742805329628,0.22875,87432.0,87429.0,0.228757]
[1742805329848,0.22875,87432.0,87430.0,0.11957503]
[1742805330228,0.240184,87433.0,87430.0,0.11957503]
[1742805330428,0.228749,87432.0,87431.0,0.12976]
[1742805330633,0.0003396,87434.0,87431.0,0.24933503]
[1742805330840,0.0003396,87434.0,87433.0,0.35975803]
[1742805331041,0.0003396,87434.0,87433.0,1.07805803]
[1742805331249,6e-07,87434.0,87433.0,1.08949003]
[1742805331449,6e-07,87434.0,87433.0,1.10903088]
[1742805331720,0.0001697,87461.0,87460.0,0.240108]
[1742805331922,0.0001697,87461.0,87460.0,0.48964303]
[1742805332358,0.0001697,87482.0,87481.0,0.240052]
[1742805332560,0.0001697,87482.0,87481.0,0.48954703]
[1742805332761,0.0001697,87482.0,87481.0,0.47811603]
[1742805332958,0.0001697,87482.0,87481.0,0.24949503]
[1742805333896,0.0115997,87482.0,87481.0,0.001]
[1742805334142,0.0115997,87482.0,87481.0,0.13112]
[1742805334275,0.0115997,87482.0,87481.0,0.13012]
[1742805334676,0.0115997,87482.0,87481.0,0.13112]
[1742805334883,0.03294822,87482.0,87481.0,0.13112]
[1742805335087,0.03294822,87482.0,87481.0,0.13012]
[1742805335678,0.03294822,87482.0,87462.0,0.3]
[1742805335679,0.011433,87466.0,87462.0,0.3]
[1742805335883,0.228655,87468.0,87463.0,0.47828003]
[1742805336146,0.228655,87468.0,87464.0,0.228663]
[1742805336343,0.228658,87467.0,87465.0,0.11957503]
[1742805337751,0.228658,87467.0,87465.0,0.12557503]
[1742805338409,0.011432,87469.0,87465.0,0.12557503]
[1742805338632,0.228655,87468.0,87465.0,0.13057503]
[1742805338827,0.22866,87467.0,87465.0,0.13057503]
[1742805339171,0.228655,87468.0,87465.0,0.35923603]
[1742805339348,0.228656,87468.0,87465.0,0.35923603]
[1742805339551,0.228656,87468.0,87465.0,0.35423603]
[1742805339748,0.228656,87468.0,87465.0,0.35923603]
[1742805340072,0.228656,87468.0,87465.0,0.35323603]
[1742805340403,0.228658,87467.0,87465.0,0.12457503]
[1742805340570,0.228656,87468.0,87465.0,0.12457503]
[1742805340795,0.228656,87468.0,87465.0,0.35823703]
[1742805341072,0.240093,87466.0,87465.0,0.12457503]
[1742805341299,0.22866,87466.0,87465.0,0.11957503]
[1742805341505,0.22866,87466.0,87465.0,0.12457503]
[1742805341719,0.011432,87467.0,87465.0,0.13057503]
[1742805341937,0.228656,87468.0,87465.0,0.13057503]
[1742805342288,0.228656,87468.0,87465.0,0.12557503]
[1742805342486,0.228656,87468.0,87465.0,0.13057503]
[1742805342812,0.228653,87469.0,87465.0,0.35923503]
[1742805342976,0.228653,87469.0,87465.0,0.34823503]
[1742805343174,0.228653,87469.0,87465.0,0.35323503]
[1742805343524,0.228655,87468.0,87465.0,0.35323503]
[1742805343727,0.228658,87467.0,87465.0,0.11957503]
[1742805344100,0.24009,87467.0,87465.0,0.12357503]
[1742805344309,0.24009,87467.0,87465.0,0.12857503]
[1742805344520,0.24009,87467.0,87465.0,0.11957503]
[1742805344721,0.228658,87467.0,87465.0,0.11957503]
[1742805344913,0.228658,87467.0,87465.0,0.12957503]
[1742805346758,0.228655,87468.0,87465.0,0.35823703]
[1742805347751,0.22866,87466.0,87465.0,0.11957503]
[1742805347946,0.240093,87466.0,87465.0,0.11957503]
[1742805348151,0.240093,87466.0,87465.0,0.12857503]
[1742805348355,0.240093,87466.0,87465.0,0.009]
[1742805348563,0.240093,87466.0,87465.0,0.13864]
[1742805348984,0.240093,87466.0,87465.0,0.13364]
[1742805349193,0.240093,87466.0,87465.0,0.13864]
[1742805349366,0.240093,87466.0,87465.0,0.13364]
[1742805349918,0.240093,87466.0,87465.0,0.004]
[1742805350116,0.240093,87466.0,87465.0,0.1296]
[1742805350521,0.240093,87466.0,87465.0,0.1346]
[1742805351033,0.240093,87466.0,87465.0,0.1296]
[1742805351432,0.240093,87466.0,87465.0,0.13156]
[1742805351862,0.240093,87466.0,87465.0,0.13356]
[1742805355193,0.240093,87466.0,87465.0,0.13348]
[1742805355456,0.22866,87466.0,87465.0,0.13348]
[1742805355665,0.240093,87466.0,87465.0,0.13348]
[1742805355873,0.240093,87466.0,87465.0,0.13148]
[1742805356192,0.240093,87466.0,87465.0,0.12948]
[1742805356639,0.240093,87466.0,87465.0,0.13248]
[1742805356854,0.240093,87466.0,87465.0,0.13348]
[1742805358203,0.0001695,87467.0,87465.0,0.12357503]
[1742805358425,0.0001695,87467.0,87466.0,0.47763503]
[1742805358575,0.0001695,87467.0,87466.0,0.24897503]
[1742805359185,0.2288265,87467.0,87466.0,0.24897503]
[1742805359646,0.2402585,87467.0,87466.0,0.24897503]
[1742805360017,0.2402585,87467.0,87466.0,0.25297503]
[1742805360416,0.2402585,87467.0,87466.0,0.25897503]
[1742805360717,0.0001695,87467.0,87466.0,0.49906803]
[1742805360942,0.02157781,87467.0,87466.0,0.49906803]
[1742805361631,0.02157781,87467.0,87466.0,0.25897503]
[1742805362089,0.0001695,87467.0,87466.0,0.25897503]
[1742805362538,0.2288265,87467.0,87466.0,0.25897503]
[1742805362775,0.2402585,87467.0,87466.0,0.01]
[1742805363008,0.2402585,87467.0,87466.0,0.13932]
[1742805363248,0.0001695,87467.0,87466.0,0.36966803]
[1742805363719,0.0001695,87467.0,87466.0,0.49906803]
[1742805363920,0.0001695,87467.0,87466.0,0.48906803]
[1742805364166,0.0001695,87467.0,87466.0,0.49506803]
[1742805364369,0.0001695,87467.0,87466.0,0.49806803]
[1742805365473,0.0001695,87467.0,87466.0,0.49206803]
[1742805365649,0.0001695,87467.0,87466.0,0.48906803]
[1742805365897,0.0001695,87467.0,87466.0,0.49906803]
[1742805370794,0.0001695,87467.0,87466.0,0.91736803]
[1742805371457,0.0001695,87467.0,87466.0,0.91748803]
[1742805372043,0.0001695,87467.0,87466.0,1.48628803]
[1742805383290,0.0001695,87467.0,87466.0,1.80082888]
[1742805383525,0.0001695,87467.0,87466.0,1.85032888]
[1742805383719,0.0001695,87467.0,87466.0,1.88568939]
[1742805384971,0.0001695,87467.0,87466.0,1.87568939]
[1742805385105,0.0001695,87467.0,87466.0,1.88568939]
[1742805385512,0.0001695,87467.0,87466.0,1.87968939]
[1742805385764,0.0001695,87467.0,87466.0,1.88568939]
[1742805385924,0.0001695,87467.0,87466.0,1.89168939]
[1742805386988,0.0001695,87467.0,87466.0,1.99365882]
[1742805389073,7e-07,87482.0,87481.0,0.570052]
[1742805389270,0.3001697,87499.0,87498.0,0.240004]
[1742805389472,0.3001697,87499.0,87498.0,1.05729903]
[1742805389679,0.3001697,87499.0,87498.0,1.06890895]
[1742805390057,0.3001697,87499.0,87498.0,0.82890495]
[1742805390266,0.3001697,87499.0,87498.0,1.05748095]
[1742805390478,0.3001697,87499.0,87498.0,1.0920059]
[1742805390739,0.3001697,87499.0,87498.0,0.9630059]
[1742805390909,0.3001697,87499.0,87498.0,1.0920459]
[1742805391540,0.3001697,87499.0,87498.0,1.0920059]
[1742805392197,0.3001697,87499.0,87498.0,1.0980059]
[1742805392537,0.3001697,87499.0,87498.0,1.1010059]
[1742805392741,0.3001697,87499.0,87498.0,0.9720059]
[1742805392941,0.3001697,87499.0,87498.0,1.1009659]
[1742805393774,0.3001697,87499.0,87498.0,1.1009259]
[1742805394414,0.3001697,87499.0,87498.0,1.1008859]
[1742805394615,0.3001697,87499.0,87498.0,1.10952321]
[1742805396598,0.3001697,87499.0,87498.0,1.09809521]
[1742805396760,0.3001697,87499.0,87498.0,1.10952321]
[1742805397812,0.3001697,87499.0,87498.0,1.09809521]
[1742805398019,0.3001697,87499.0,87498.0,0.72039198]
[1742805398223,0.6216717,87499.0,87498.0,0.82637503]
[1742805398419,0.6216717,87499.0,87498.0,0.7068]
[1742805399045,0.6216717,87499.0,87498.0,0.57772]
[1742805399364,0.6216717,87499.0,87498.0,0.70676]
[1742805402408,0.6216717,87499.0,87498.0,0.70668]
[1742805403320,0.6216717,87499.0,87498.0,0.70368]
[1742805403542,0.6216717,87499.0,87498.0,0.69768]
[1742805403790,0.6216717,87499.0,87498.0,0.70064]
[1742805407337,0.6216717,87499.0,87498.0,0.57172]
[1742805407498,0.6216717,87499.0,87498.0,0.003]
[1742805407702,0.6216717,87499.0,87498.0,0.13176]
[1742805410487,0.6216717,87499.0,87498.0,0.12876]
[1742805410690,0.9395721,87499.0,87498.0,1e-06]
[1742805410922,1.10574713,87499.0,87498.0,1e-06]
[1742805411458,1.10554713,87499.0,87498.0,1e-06]
[1742805412339,1.12885052,87499.0,87498.0,1e-06]
[1742805413414,1.10554713,87499.0,87498.0,1e-06]
[1742805413621,0.9859721,87499.0,87498.0,1e-06]
[1742805413772,0.6214717,87499.0,87498.0,1e-06]
[1742805413979,0.2999697,87499.0,87498.0,1e-06]
[1742805414185,0.5399717,87499.0,87498.0,1e-06]
[1742805415023,0.240004,87498.0,87497.0,0.12896]
[1742805417085,0.240004,87498.0,87497.0,0.13196]
[1742805417259,0.319004,87498.0,87497.0,0.13196]
[1742805417492,0.319004,87498.0,87497.0,0.13204]
[1742805418247,0.319004,87498.0,87497.0,0.12904]
[1742805418658,0.319004,87498.0,87497.0,0.13104]
[1742805422734,0.240004,87498.0,87497.0,0.13104]
[1742805423564,0.240004,87498.0,87497.0,0.12904]
[1742805424038,0.240004,87498.0,87497.0,0.13204]
[1742805429485,0.3001392,87499.0,87498.0,0.240004]
[1742805429729,0.3001392,87499.0,87498.0,0.35957903]
[1742805430543,0.3001392,87499.0,87498.0,0.36257903]
[1742805430754,0.3001392,87499.0,87498.0,0.25145503]
[1742805430966,0.5401412,87499.0,87498.0,0.25445503]
[1742805431162,0.5287132,87499.0,87498.0,0.25145503]
[1742805431377,0.5401412,87499.0,87498.0,0.25745503]
[1742805431697,0.5401412,87499.0,87498.0,0.25753503]
[1742805432172,0.5401412,87499.0,87498.0,0.13792]
[1742805435932,0.5401412,87499.0,87498.0,0.49749903]
[1742805435933,0.3001392,87499.0,87498.0,0.49749903]
[1742805436631,0.3001392,87499.0,87498.0,0.48607103]
[1742805436999,0.3001392,87499.0,87498.0,0.25749503]
[1742805438152,0.5401412,87499.0,87498.0,0.25749503]
[1742805439438,0.3001392,87499.0,87498.0,0.25749503]
[1742805439637,0.3001392,87499.0,87498.0,0.49749903]
[1742805440623,0.3001392,87499.0,87498.0,0.48607103]
[1742805440773,0.5287132,87499.0,87498.0,0.25749503]
[1742805440974,0.5401412,87499.0,87498.0,0.25749503]
[1742805442796,0.3001392,87499.0,87498.0,0.25749503]
[1742805443602,0.5287132,87499.0,87498.0,0.25749503]
[1742805444228,0.3001392,87499.0,87498.0,0.25749503]
[1742805445048,0.5401412,87499.0,87498.0,0.25749503]
[1742805445479,0.5287132,87499.0,87498.0,0.25749503]
[1742805445891,0.3001392,87499.0,87498.0,0.49749903]
[1742805446771,0.3001392,87499.0,87498.0,0.49783823]
[1742805449619,0.2901392,87499.0,87498.0,0.49783823]
[1742805451064,0.2901392,87499.0,87498.0,0.67674133]
[1742805452813,0.2901392,87499.0,87498.0,0.67074133]
[1742805453273,0.2901392,87499.0,87498.0,0.67674133]
[1742805453449,0.2901392,87499.0,87498.0,0.70808333]
[1742805453656,0.2901392,87499.0,87498.0,0.70208333]
[1742805453856,0.2901392,87499.0,87498.0,0.70608333]
[1742805454037,0.2901392,87499.0,87498.0,0.70808333]
[1742805454441,0.2901392,87499.0,87498.0,0.71308333]
[1742805458022,0.2901392,87499.0,87498.0,0.63368333]
[1742805459962,0.2901392,87499.0,87498.0,0.50476333]
[1742805460173,0.2901392,87499.0,87498.0,0.63356333]
[1742805466027,0.2901792,87499.0,87498.0,0.63332333]
[1742805467319,0.2901792,87499.0,87498.0,1.20184333]
[1742805468414,0.20435862,87499.0,87498.0,1.20184333]
[1742805469203,0.20435862,87499.0,87498.0,1.16648108]
[1742805469627,0.20435862,87499.0,87498.0,1.20177963]
[1742805470205,0.20435862,87499.0,87498.0,1.16648108]
[1742805470526,0.20435862,87499.0,87498.0,1.20178663]
[1742805474915,0.20435862,87499.0,87498.0,1.07322663]
[1742805475113,0.20435862,87499.0,87498.0,1.20146663]
[1742805475702,0.20435862,87499.0,87498.0,1.00908578]
[1742805476064,0.20435862,87499.0,87498.0,0.93943823]
[1742805476270,0.20435862,87499.0,87498.0,1.10206123]
[1742805476399,0.20435862,87499.0,87498.0,1.13737611]
[1742805476611,0.20435862,87499.0,87498.0,1.10206123]
[1742805476867,0.20435862,87499.0,87498.0,1.15192026]
[1742805477445,0.20435862,87499.0,87498.0,1.11660208]
[1742805478050,0.20435862,87499.0,87498.0,1.1519254]
[1742805481373,0.20435862,87499.0,87498.0,1.0236454]
[1742805481554,0.20435862,87499.0,87498.0,1.1518454]
[1742805484920,0.20435862,87499.0,87498.0,1.1175024]
[1742805488888,0.20435862,87499.0,87498.0,0.9893024]
[1742805489108,0.20435862,87499.0,87498.0,1.1173824]
[1742805490487,0.20435862,87499.0,87498.0,1.1173424]
[1742805490801,0.20435862,87499.0,87498.0,1.1174224]
[1742805492046,0.1185378,87499.0,87498.0,1.1174224]
[1742805492405,0.0003392,87502.0,87498.0,1.1174224]
[1742805492406,2e-07,87502.0,87501.0,0.318096]
[1742805492600,2e-07,87502.0,87501.0,0.6966352]
[1742805493300,2e-07,87502.0,87501.0,0.9966352]
[1742805493529,8e-07,87510.0,87509.0,0.269974]
[1742805493755,8e-07,87510.0,87509.0,0.7394132]
[1742805495170,8e-07,87510.0,87509.0,1.4394132]
[1742805496182,8e-07,87510.0,87509.0,1.44815231]
[1742805496412,8e-07,87510.0,87509.0,1.46015231]
[1742805498000,0.0580097,87531.0,87530.0,0.239917]
[1742805498263,0.0580097,87531.0,87530.0,1.05641203]
[1742805499704,0.0580097,87531.0,87530.0,1.05941203]
[1742805499917,0.0580097,87531.0,87530.0,1.06541203]
[1742805500889,0.0580097,87531.0,87530.0,1.07708945]
[1742805501497,0.002,87539.0,87538.0,0.239895]
[1742805501653,0.002,87539.0,87538.0,0.35947003]
[1742805501853,0.002,87539.0,87538.0,0.11957503]
[1742805502080,0.0801,87539.0,87538.0,0.35947003]
[1742805502645,0.0801,87539.0,87538.0,0.36147003]
[1742805503334,0.0801,87539.0,87538.0,0.36647003]
[1742805506479,0.0801,87539.0,87538.0,0.45187603]
[1742805507587,0.0801,87539.0,87538.0,0.44045303]
[1742805508570,0.0801,87539.0,87538.0,0.21198103]
[1742805508571,0.308569,87539.0,87538.0,0.21198103]
[1742805508908,0.0801,87539.0,87538.0,0.21198103]
[1742805509043,0.308569,87539.0,87538.0,0.21198103]
[1742805509714,0.091523,87539.0,87538.0,0.21198103]
[1742805509929,0.319992,87539.0,87538.0,0.34010103]
[1742805510351,0.319992,87539.0,87538.0,0.21198103]
[1742805510497,0.319992,87539.0,87538.0,0.34006103]
[1742805513938,0.319992,87539.0,87538.0,0.34014103]
[1742805515922,0.319992,87539.0,87538.0,0.33190513]
[1742805516124,0.319992,87539.0,87538.0,0.220566]
[1742805516326,0.319992,87539.0,87538.0,0.220486]
[1742805516756,0.619992,87539.0,87538.0,0.092406]
[1742805516958,0.665492,87539.0,87538.0,0.092406]
[1742805517084,0.665492,87539.0,87538.0,0.220486]
[1742805517536,0.665492,87539.0,87538.0,0.215486]
[1742805517912,0.665492,87539.0,87538.0,0.218486]
[1742805518976,0.6656615,87539.0,87538.0,0.216486]
[1742805523586,0.6656615,87539.0,87538.0,0.251486]
[1742805523957,0.6656615,87539.0,87538.0,0.123406]
[1742805524169,0.239972,87510.0,87507.0,0.5684]
[1742805524380,0.319672,87510.0,87509.0,0.24783403]
[1742805525013,0.319672,87510.0,87509.0,0.11991403]
[1742805525215,0.319672,87510.0,87509.0,0.24779403]
[1742805525420,0.319672,87510.0,87509.0,0.25379403]
[1742805525975,0.319672,87510.0,87509.0,0.27720217]
[1742805526164,0.319672,87510.0,87509.0,0.27920217]
[1742805526814,0.319672,87510.0,87509.0,0.27886317]
[1742805527029,0.33098036,87510.0,87509.0,0.25320217]
[1742805527274,0.33098036,87510.0,87509.0,0.25920217]
[1742805527975,0.33098036,87510.0,87509.0,0.25916217]
[1742805528164,0.319672,87510.0,87509.0,0.25916217]
[1742805528379,0.319672,87510.0,87509.0,0.25912217]
[1742805528680,0.33114481,87510.0,87509.0,0.25912217]
[1742805532049,0.33114481,87510.0,87509.0,0.25946137]
[1742805532244,0.33131441,87510.0,87509.0,0.25946137]
[1742805533509,0.3198416,87510.0,87509.0,0.25946137]
[1742805534170,0.3084146,87510.0,87509.0,0.25946137]
[1742805534324,0.3198416,87510.0,87509.0,0.25946137]
[1742805538657,0.3148416,87510.0,87509.0,0.25946137]
[1742805542139,0.0001696,87510.0,87509.0,0.49943537]
[1742805543351,0.0001696,87510.0,87509.0,0.49343537]
[1742805543555,0.0001696,87510.0,87509.0,0.49143537]